fUSD/lending_fUSD_20241219
["ID","MTS","AMOUNT","RATE_DAILY","PERIOD"]
[345985659,1734601846055,-500.0,0.00023558,4]
[345985660,1734601846068,-500.0,0.00023558,4]
[345985661,1734601846078,-500.0,0.00023558,4]
[345985662,1734601846090,-683.4,0.00023558,4]
[345985663,1734601846100,-500.0,0.00023558,4]
[345985664,1734601846112,-1242.62,0.00023558,4]
[345985665,1734601846122,-507.10229942,0.00023558,4]
[345985666,1734601846133,-511.27,0.00023558,4]
[345985667,1734601846151,-1626.52,0.00023558,4]
[345985668,1734601846160,-500.0,0.00023558,4]
[345985669,1734601846169,-500.0,0.00023558,4]
[345985670,1734601846180,-500.0,0.00023558,4]
[345985671,1734601846188,-500.0,0.00023558,4]
[345985672,1734601846197,-500.0,0.00023558,4]
[345985673,1734601846207,-500.0,0.00023561,4]
[345985674,1734601846219,-500.0,0.00023561,4]
[345985675,1734601846230,-287.90694448,0.00023561,4]
[345985676,1734601846239,-500.0,0.00023561,4]
[345985677,1734601846250,-532.29,0.00023561,4]
[345985678,1734601846262,-772.39,0.00023561,4]
[345985679,1734601846271,-402.47181957,0.00023561,4]
[345985680,1734601846281,-500.0,0.00023561,4]
[345985681,1734601846290,-500.0,0.00023561,4]
[345985682,1734601846299,-500.0,0.00023561,4]
[345985683,1734601846309,-500.0,0.00023561,4]
[345985684,1734601846324,-500.0,0.00023561,4]
[345985685,1734601846335,-310.70960865,0.00023567,2]
[345985686,1734601846347,-150.0,0.00023568,2]
[345985687,1734601846358,-150.0,0.00023569,2]
[345985688,1734601846369,-1243.2395,0.00023588,2]
[345985689,1734601846380,-500.0,0.00023611,2]
[345985690,1734601846391,-500.0,0.00023611,2]
[345985691,1734601846402,-513.51,0.00023612,2]
[345985692,1734601846412,-150.0,0.00023612,2]
[345985693,1734601846422,-150.0,0.00023615,2]
[345985694,1734601846436,-150.0,0.00023619,2]
[345985695,1734601846446,-500.0,0.0002365,2]
[345985696,1734601846456,-502.35644615,0.0002365,2]
[345985697,1734601846466,-150.0,0.00023661,2]
[345985698,1734601846476,-150.0,0.00023667,2]
[345985699,1734601846488,-500.0,0.00023669,4]
[345985700,1734601846498,-500.0,0.00023669,4]
[345985701,1734601846508,-859.67,0.00023669,4]
[345985702,1734601846519,-500.0,0.00023669,4]
[345985703,1734601846529,-636.77,0.00023669,4]
[345985704,1734601846538,-500.0,0.00023669,4]
[345985705,1734601846547,-500.0,0.00023669,4]
[345985706,1734601846556,-500.0,0.00023669,4]
[345985707,1734601846566,-500.0,0.00023669,4]
[345985708,1734601846576,-1000.0,0.00023669,2]
[345985709,1734601846586,-163.495186,0.00023683,2]
[345985710,1734601846596,-150.0,0.00023685,2]
[345985711,1734601846605,-586.17,0.00023689,7]
[345985712,1734601846614,-586.17,0.00023689,7]
[345985713,1734601846623,-586.17,0.00023689,7]
[345985714,1734601846632,-586.17,0.00023689,7]
[345985715,1734601846642,-500.0,0.00023692,2]
[345985716,1734601846651,-203.0,0.0002373,2]
[345985717,1734601846662,-150.0,0.0002373,2]
[345985718,1734601846673,-150.0,0.00023732,2]
[345985719,1734601846685,-597.93290711,0.00023748,2]
[345985720,1734601846695,-150.0,0.0002376,2]
[345985721,1734601846704,-150.0,0.00023775,2]
[345985722,1734601846714,-150.0,0.00023777,2]
[345985723,1734601846723,-150.0,0.00023785,2]
[345985724,1734601846733,-200.0,0.000238,8]
[345985725,1734601846743,-150.0,0.00023802,2]
[345985726,1734601846752,-1000.0,0.00023821,2]
[345985727,1734601846764,-150.0,0.00023822,2]
[345985728,1734601846776,-150.0,0.00023827,2]
[345985729,1734601846787,-500.0,0.00023831,2]
[345985730,1734601846799,-600.0,0.00023832,2]
[345985731,1734601846809,-580.96,0.00023832,2]
[345985732,1734601846818,-500.0,0.00023832,4]
[345985733,1734601846827,-500.0,0.00023832,4]
[345985734,1734601846836,-500.0,0.00023832,4]
[345985735,1734601846845,-374.42726175,0.00023832,4]
[345985736,1734601846855,-500.0,0.00023832,4]
[345985737,1734601846864,-500.0,0.00023832,4]
[345985738,1734601846873,-500.0,0.00023832,4]
[345985739,1734601846882,-500.0,0.00023832,4]
[345985740,1734601846892,-500.0,0.00023832,4]
[345985741,1734601846901,-500.0,0.00023832,4]
[345985742,1734601846910,-500.0,0.00023832,4]
[345985743,1734601846920,-500.0,0.00023832,4]
[345985744,1734601846931,-500.0,0.00023832,4]
[345985745,1734601846940,-683.4,0.00023832,4]
[345985746,1734601846949,-500.0,0.00023832,4]
[345985747,1734601846959,-1242.62,0.00023832,4]
[345985748,1734601846968,-511.27,0.00023832,4]
[345985749,1734601846977,-1626.52,0.00023832,4]
[345985750,1734601846986,-500.0,0.00023832,4]
[345985751,1734601846996,-500.0,0.00023832,4]
[345985752,1734601847006,-500.0,0.00023832,4]
[345985753,1734601847017,-500.0,0.00023832,4]
[345985754,1734601847026,-500.0,0.00023832,4]
[345985755,1734601847036,-3804.47014682,0.00023833,2]
[345985756,1734601847046,-500.0,0.00023835,4]
[345985757,1734601847055,-500.0,0.00023835,4]
[345985758,1734601847065,-500.0,0.00023835,4]
[345985759,1734601847074,-532.29,0.00023835,4]
[345985760,1734601847083,-772.39,0.00023835,4]
[345985761,1734601847094,-500.0,0.00023835,4]
[345985762,1734601847103,-500.0,0.00023835,4]
[345985763,1734601847112,-500.0,0.00023835,4]
[345985764,1734601847121,-500.0,0.00023835,4]
[345985765,1734601847130,-500.0,0.00023835,4]
[345985766,1734601847139,-150.0,0.00023865,2]
[345985767,1734601847149,-150.0,0.00023867,2]
[345985768,1734601847158,-150.0,0.00023877,2]
[345985769,1734601847167,-500.0,0.00023885,2]
[345985770,1734601847176,-503.84730207,0.00023885,2]
[345985771,1734601847185,-513.51,0.00023886,2]
[345985772,1734601847195,-150.0,0.00023886,2]
[345985773,1734601847204,-150.0,0.00023889,2]
[345985774,1734601847214,-150.0,0.00023892,2]
[345985775,1734601847224,-854.24311,0.000239,3]
[345985776,1734601847234,-1248.95160119,0.000239,3]
[345985777,1734601847244,-485.13230275,0.000239,2]
[345985778,1734601847256,-500.0,0.000239,8]
[345985779,1734601847266,-198.18272663,0.000239,2]
[345985780,1734601847276,-310.70960865,0.000239,2]
[345985781,1734601847285,-176.50499016,0.000239,2]
[345985782,1734601847294,-150.0,0.00023901,2]
[345985783,1734601847304,-1396.2,0.00023904,2]
[345985784,1734601847313,-150.0,0.00023913,2]
[345985785,1734601847322,-150.0,0.00023918,2]
[345985786,1734601847332,-500.0,0.00023918,2]
[345985787,1734601847341,-500.0,0.00023919,2]
[345985788,1734601847350,-500.0,0.00023919,2]
[345985789,1734601847360,-150.0,0.00023925,2]
[345985790,1734601847369,-150.0,0.00023929,2]
[345985791,1734601847379,-150.0,0.00023929,2]
[345985792,1734601847388,-500.0,0.00023943,4]
[345985793,1734601847397,-500.0,0.00023943,4]
[345985794,1734601847406,-859.67,0.00023943,4]
[345985795,1734601847416,-500.0,0.00023943,4]
[345985796,1734601847425,-636.77,0.00023943,4]
[345985797,1734601847437,-500.0,0.00023943,4]
[345985798,1734601847446,-500.0,0.00023943,4]
[345985799,1734601847456,-500.0,0.00023943,4]
[345985800,1734601847466,-500.0,0.00023943,4]
[345985801,1734601847475,-1000.0,0.00023943,2]
[345985802,1734601847484,-150.0,0.00023947,2]
[345985803,1734601847494,-150.0,0.00023956,2]
[345985804,1734601847503,-1500.0,0.00023958,2]
[345985805,1734601847512,-586.17,0.00023962,7]
[345985806,1734601847555,-586.17,0.00023962,7]
[345985807,1734601847564,-150.0,0.00023963,2]
[345985808,1734601847574,-150.0,0.00023966,2]
[345985809,1734601847583,-150.0,0.00023971,2]
[345985810,1734601847592,-1203.47,0.00023972,2]
[345985811,1734601847601,-311.9493016,0.00023973,2]
[345985812,1734601847610,-150.0,0.00023985,2]
[345985813,1734601847620,-150.0,0.00023988,2]
[345985814,1734601847630,-3882.99488408,0.0002399,2]
[345985815,1734601847640,-153.0,0.00023997,2]
[345985816,1734601847649,-500.0,0.00023998,2]
[345985817,1734601847659,-500.0,0.00023998,2]
[345985818,1734601847668,-500.0,0.00023998,2]
[345985819,1734601847678,-1000.0,0.00023999,2]
[345985820,1734601847687,-2367.07178638,0.00023999,2]
[345985821,1734601847696,-500.0,0.00023999,2]
[345985822,1734601847706,-7500.0,0.00023999,2]
[345985823,1734601847715,-267700.0,0.00024,5]
[345985824,1734601847724,-5000.0,0.00024,2]
[345985825,1734601847733,-150.0,0.00024007,2]
[345985826,1734601847743,-2110.0,0.0002401,2]
[345985827,1734601847752,-150.0,0.00024023,2]
[345985828,1734601847761,-268.29796244,0.00024023,2]
[345985829,1734601847770,-150.0,0.00024023,2]
[345985830,1734601847779,-150.0,0.00024023,2]
[345985831,1734601847787,-150.0,0.00024023,2]
[345985832,1734601847798,-60318.13071587,0.00024023,2]
[345985833,1734601847807,-4575.54633363,0.00024023,2]
[345985834,1734601847815,-2176.47247817,0.00024023,2]
[345985835,1734601847825,-3221.57205002,0.00024023,2]
[345985836,1734601847834,-150.0,0.00024038,2]
[345985837,1734601847843,-150.0,0.00024041,2]
[345985838,1734601847852,-1500.0,0.00024049,2]
[345985839,1734601847861,-1538.94,0.00024055,2]
[345985840,1734601847870,-164.72018814,0.00024059,2]
[345985841,1734601847880,-150.0,0.0002406,2]
[345985842,1734601847889,-150.0,0.0002406,2]
[345985843,1734601847898,-1500.0,0.0002406,2]
[345985844,1734601847907,-150.0,0.00024063,2]
[345985845,1734601847916,-485.13230271,0.00024067,2]
[345985846,1734601847926,-150.0,0.00024067,2]
[345985847,1734601847935,-150.0,0.00024073,2]
[345985848,1734601847944,-150.0,0.0002408,2]
[345985849,1734601847953,-150.0,0.00024092,2]
[345985850,1734601847963,-154.0,0.00024093,2]
[345985851,1734601847972,-154.0,0.00024093,2]
[345985852,1734601847981,-154.0,0.00024093,2]
[345985853,1734601847990,-154.0,0.00024093,2]
[345985854,1734601847999,-154.0,0.00024093,2]
[345985855,1734601848009,-154.0,0.00024093,2]
[345985856,1734601848018,-154.0,0.00024093,2]
[345985857,1734601848027,-154.0,0.00024093,2]
[345985858,1734601848036,-154.0,0.00024093,2]
[345985859,1734601848045,-154.0,0.00024093,2]
[345985860,1734601848055,-154.0,0.00024093,2]
[345985861,1734601848064,-154.0,0.00024093,2]
[345985862,1734601848073,-155.19,0.00024093,2]
[345985863,1734601848082,-169.0,0.00024093,2]
[345985864,1734601848091,-169.0,0.00024093,2]
[345985865,1734601848101,-169.0,0.00024093,2]
[345985866,1734601848110,-169.0,0.00024093,2]
[345985867,1734601848119,-169.0,0.00024093,2]
[345985868,1734601848128,-169.0,0.00024093,2]
[345985869,1734601848137,-190.65,0.00024093,2]
[345985870,1734601848146,-800.0,0.000241,8]
[345985871,1734601848156,-150.0,0.00024105,2]
[345985872,1734601848164,-600.0,0.00024106,2]
[345985873,1734601848174,-580.96,0.00024106,2]
[345985874,1734601848183,-500.0,0.00024106,4]
[345985875,1734601848192,-441.58612278,0.00024106,4]
[345985876,1734601848201,-500.0,0.00024106,4]
[345985877,1734601848210,-532.78729303,0.00024106,4]
[345985878,1734601848219,-500.0,0.00024106,4]
[345985879,1734601848228,-500.0,0.00024106,4]
[345985880,1734601848237,-500.0,0.00024106,4]
[345985881,1734601848248,-500.0,0.00024106,4]
[345985882,1734601848262,-500.0,0.00024106,4]
[345985883,1734601848271,-500.0,0.00024106,4]
[345985884,1734601848280,-500.0,0.00024106,4]
[345985885,1734601848290,-500.0,0.00024106,4]
[345985886,1734601848300,-683.4,0.00024106,4]
[345985887,1734601848309,-500.0,0.00024106,4]
[345985888,1734601848318,-1242.62,0.00024106,4]
[345985889,1734601848327,-511.27,0.00024106,4]
[345985890,1734601848338,-1626.52,0.00024106,4]
[345985891,1734601848347,-500.0,0.00024106,4]
[345985892,1734601848357,-500.0,0.00024106,4]
[345985893,1734601848366,-526.46432382,0.00024106,4]
[345985894,1734601848376,-500.0,0.00024106,4]
[345985895,1734601848385,-500.0,0.00024106,4]
[345985896,1734601848394,-150.0,0.00024107,2]
[345985897,1734601848403,-328.68478132,0.00024109,4]
[345985898,1734601848412,-500.0,0.00024109,4]
[345985899,1734601848421,-500.0,0.00024109,4]
[345985900,1734601848432,-532.29,0.00024109,4]
[345985901,1734601848441,-772.39,0.00024109,4]
[345985902,1734601848451,-500.0,0.00024109,4]
[345985903,1734601848460,-500.0,0.00024109,4]
[345985904,1734601848469,-185.91581798,0.00024109,4]
[345985905,1734601848478,-500.0,0.00024109,4]
[345985906,1734601848488,-500.0,0.00024109,4]
[345985907,1734601848498,-1500.0,0.0002411,2]
[345985908,1734601848507,-150.0,0.00024111,2]
[345985909,1734601848516,-150.0,0.00024131,2]
[345985910,1734601848525,-150.0,0.00024138,2]
[345985911,1734601848534,-298.4170667,0.00024139,2]
[345985912,1734601848543,-150.0,0.00024146,2]
[345985913,1734601848552,-150.0,0.00024147,2]
[345985914,1734601848561,-208.0,0.0002415,2]
[345985915,1734601848570,-203.0,0.0002415,2]
[345985916,1734601848579,-198.18272662,0.0002415,2]
[345985917,1734601848588,-150.0,0.00024156,2]
[345985918,1734601848598,-500.0,0.00024159,2]
[345985919,1734601848608,-513.51,0.0002416,2]
[345985920,1734601848617,-957.8346,0.0002417,2]
[345985921,1734601848626,-154.0,0.00024172,2]
[345985922,1734601848635,-154.0,0.00024172,2]
[345985923,1734601848645,-154.0,0.00024172,2]
[345985924,1734601848656,-154.0,0.00024172,2]
[345985925,1734601848665,-154.0,0.00024172,2]
[345985926,1734601848674,-154.0,0.00024172,2]
[345985927,1734601848686,-154.0,0.00024172,2]
[345985928,1734601848695,-154.0,0.00024172,2]
[345985929,1734601848705,-154.0,0.00024172,2]
[345985930,1734601848713,-154.0,0.00024172,2]
[345985931,1734601848723,-154.0,0.00024172,2]
[345985932,1734601848732,-154.0,0.00024172,2]
[345985933,1734601848741,-150.0,0.00024173,2]
[345985934,1734601848750,-9999.99,0.00024174,2]
[345985935,1734601848759,-1108.47,0.00024174,2]
[345985936,1734601848768,-5338.23,0.00024174,2]
[345985937,1734601848778,-7397.18,0.00024174,2]
[345985938,1734601848786,-150.99,0.00024174,2]
[345985939,1734601848795,-499.99,0.00024174,2]
[345985940,1734601848804,-999.99,0.00024174,2]
[345985941,1734601848814,-3469.65,0.00024174,2]
[345985942,1734601848823,-2201.26,0.00024174,2]
[345985943,1734601848832,-9136.47,0.00024174,2]
[345985944,1734601848842,-150.99,0.00024174,2]
[345985945,1734601848852,-78628.58,0.00024174,2]
[345985946,1734601848862,-9999.99,0.00024174,2]
[345985947,1734601848871,-1443.83,0.00024174,2]
[345985948,1734601848881,-150.0,0.00024179,2]
[345985949,1734601848890,-3804.47014682,0.00024189,2]
[345985950,1734601848900,-150.0,0.00024189,2]
[345985951,1734601848909,-150.0,0.0002419,2]
[345985952,1734601848919,-364.52,0.00024192,2]
[345985953,1734601848928,-500.0,0.00024198,2]
[345985954,1734601848938,-150.0,0.000242,2]
[345985955,1734601848947,-1100.0,0.000242,8]
[345985956,1734601848956,-150.0,0.00024207,2]
[345985957,1734601848966,-500.0,0.00024217,4]
[345985958,1734601848976,-500.0,0.00024217,4]
[345985959,1734601848986,-859.67,0.00024217,4]
[345985960,1734601848995,-500.0,0.00024217,4]
[345985961,1734601849005,-636.77,0.00024217,4]
[345985962,1734601849015,-500.0,0.00024217,4]
[345985963,1734601849024,-500.0,0.00024217,4]
[345985964,1734601849033,-500.0,0.00024217,4]
[345985965,1734601849043,-500.0,0.00024217,4]
[345985966,1734601849053,-1000.0,0.00024217,2]
[345985967,1734601849063,-150.0,0.00024226,2]
[345985968,1734601849072,-150.0,0.00024231,2]
[345985969,1734601849081,-485.13230271,0.00024233,2]
[345985970,1734601849090,-310.70960865,0.00024233,2]
[345985971,1734601849099,-586.17,0.00024235,7]
[345985972,1734601849108,-586.17,0.00024235,7]
[345985973,1734601849117,-2505.45,0.00024239,2]
[345985974,1734601849126,-150.0,0.00024239,2]
[345985975,1734601849135,-234.48645946,0.0002424,2]
[345985976,1734601849145,-150.0,0.00024243,2]
[345985977,1734601849154,-150.0,0.00024243,2]
[345985978,1734601849164,-150.0,0.00024245,2]
[345985979,1734601849174,-150.0,0.00024248,2]
[345985980,1734601849183,-150.0,0.00024249,2]
[345985981,1734601849192,-1406.0,0.0002425,2]
[345985982,1734601849202,-150.0,0.00024251,2]
[345985983,1734601849211,-150.0,0.00024254,2]
[345985984,1734601849220,-150.0,0.00024267,2]
[345985985,1734601849231,-150.0,0.00024271,2]
[345985986,1734601849240,-500.0,0.00024272,2]
[345985987,1734601849249,-150.0,0.00024272,2]
[345985988,1734601849262,-2505.92,0.00024273,2]
[345985989,1734601849271,-150.0,0.00024281,2]
[345985990,1734601849280,-500.0,0.00024291,2]
[345985991,1734601849290,-5307.49265237,0.00024292,2]
[345985992,1734601849299,-5000.0,0.00024292,2]
[345985993,1734601849308,-150.0,0.00024297,2]
[345985994,1734601849318,-1400.0,0.000243,8]
[345985995,1734601849327,-150.0,0.00024308,2]
[345985996,1734601849337,-200.45,0.00024324,2]
[345985997,1734601849346,-150.0,0.00024326,2]
[345985998,1734601849356,-150.0,0.00024332,2]
[345985999,1734601849366,-171.87138213,0.00024333,2]
[345986000,1734601849375,-171.10178769,0.00024337,2]
[345986001,1734601849385,-150.0,0.00024338,2]
[345986002,1734601849396,-2504.23,0.00024341,2]
[345986003,1734601849406,-749.69,0.00024357,2]
[345986004,1734601849416,-150.0,0.00024364,2]
[345986005,1734601849425,-25000.0,0.00024369,2]
[345986006,1734601849435,-150.0,0.00024369,2]
[345986007,1734601849444,-150.0,0.00024371,2]
[345986008,1734601849454,-156.0,0.00024371,2]
[345986009,1734601849463,-156.0,0.00024371,2]
[345986010,1734601849474,-156.0,0.00024371,2]
[345986011,1734601849483,-156.0,0.00024371,2]
[345986012,1734601849493,-156.0,0.00024371,2]
[345986013,1734601849502,-156.0,0.00024371,2]
[345986014,1734601849512,-156.0,0.00024371,2]
[345986015,1734601849522,-156.0,0.00024371,2]
[345986016,1734601849532,-156.0,0.00024371,2]
[345986017,1734601849541,-183.84,0.00024371,2]
[345986018,1734601849551,-153.0,0.00024371,2]
[345986019,1734601849560,-150.0,0.00024374,2]
[345986020,1734601849570,-700.0,0.0002438,2]
[345986021,1734601849580,-580.96,0.0002438,2]
[345986022,1734601849589,-500.0,0.0002438,4]
[345986023,1734601849599,-500.0,0.0002438,4]
[345986024,1734601849608,-500.0,0.0002438,4]
[345986025,1734601849618,-500.0,0.0002438,4]
[345986026,1734601849627,-500.0,0.0002438,4]
[345986027,1734601849637,-500.0,0.0002438,4]
[345986028,1734601849647,-500.0,0.0002438,4]
[345986029,1734601849656,-500.0,0.0002438,4]
[345986030,1734601849665,-500.0,0.0002438,4]
[345986031,1734601849676,-500.0,0.0002438,4]
[345986032,1734601849685,-683.4,0.0002438,4]
[345986033,1734601849695,-500.0,0.0002438,4]
[345986034,1734601849705,-1242.62,0.0002438,4]
[345986035,1734601849715,-511.27,0.0002438,4]
[345986036,1734601849724,-1626.52,0.0002438,4]
[345986037,1734601849734,-595.2526002,0.0002438,4]
[345986038,1734601849743,-500.0,0.0002438,4]
[345986039,1734601849754,-500.0,0.0002438,4]
[345986040,1734601849763,-500.0,0.0002438,4]
[345986041,1734601849773,-500.0,0.00024383,4]
[345986042,1734601849783,-500.0,0.00024383,4]
[345986043,1734601849792,-532.29,0.00024383,4]
[345986044,1734601849802,-772.39,0.00024383,4]
[345986045,1734601849811,-500.0,0.00024383,4]
[345986046,1734601849821,-350.18915091,0.00024383,4]
[345986047,1734601849831,-500.0,0.00024383,4]
[345986048,1734601849840,-500.0,0.00024383,4]
[345986049,1734601849850,-2515.48,0.00024394,2]
[345986050,1734601849861,-150.0,0.00024397,2]
[345986051,1734601849872,-999.0,0.00024399,2]
[345986052,1734601849881,-1953.26,0.000244,2]
[345986053,1734601849891,-485.13230271,0.000244,2]
[345986054,1734601849901,-200.0,0.000244,8]
[345986055,1734601849912,-198.18272662,0.000244,2]
[345986056,1734601849927,-150.0,0.00024407,2]
[345986057,1734601849936,-150.0,0.00024408,2]
[345986058,1734601849946,-150.0,0.0002441,2]
[345986059,1734601849958,-2000.0,0.00024424,120]
[345986060,1734601849968,-200.0,0.00024424,120]
[345986061,1734601849978,-150.0,0.00024429,2]
[345986062,1734601849989,-500.0,0.00024433,2]
[345986063,1734601850000,-513.51,0.00024433,2]
[345986064,1734601850010,-154.0,0.0002444,2]
[345986065,1734601850020,-154.0,0.0002444,2]
[345986066,1734601850032,-154.0,0.0002444,2]
[345986067,1734601850043,-154.0,0.0002444,2]
[345986068,1734601850053,-154.0,0.0002444,2]
[345986069,1734601850063,-154.0,0.0002444,2]
[345986070,1734601850075,-154.0,0.0002444,2]
[345986071,1734601850085,-154.0,0.0002444,2]
[345986072,1734601850096,-154.0,0.0002444,2]
[345986073,1734601850106,-154.0,0.0002444,2]
[345986074,1734601850116,-154.0,0.0002444,2]
[345986075,1734601850126,-154.0,0.0002444,2]
[345986076,1734601850138,-154.0,0.0002444,2]
[345986077,1734601850147,-154.0,0.0002444,2]
[345986078,1734601850159,-154.0,0.0002444,2]
[345986079,1734601850170,-154.0,0.0002444,2]
[345986080,1734601850180,-154.0,0.0002444,2]
[345986081,1734601850189,-154.0,0.0002444,2]
[345986082,1734601850200,-154.0,0.0002444,2]
[345986083,1734601850209,-154.0,0.0002444,2]
[345986084,1734601850220,-154.0,0.0002444,2]
[345986085,1734601850231,-154.0,0.0002444,2]
[345986086,1734601850240,-154.0,0.0002444,2]
[345986087,1734601850250,-154.0,0.0002444,2]
[345986088,1734601850263,-295.83,0.0002444,2]
[345986089,1734601850272,-150.0,0.00024446,2]
[345986090,1734601850282,-150.0,0.00024446,2]
[345986091,1734601850291,-1100.0,0.00024452,2]
[345986092,1734601850301,-500.0,0.00024452,2]
[345986093,1734601850310,-11488.98,0.00024456,2]
[345986094,1734601850319,-150.0,0.00024457,2]
[345986095,1734601850330,-2504.23,0.0002446,2]
[345986096,1734601850339,-4360.0,0.00024466,2]
[345986097,1734601850348,-150.0,0.00024471,2]
[345986098,1734601850357,-503.12093841,0.00024473,2]
[345986099,1734601850366,-1526.3625468,0.00024488,2]
[345986100,1734601850376,-286.93894689,0.0002449,2]
[345986101,1734601850385,-150.0,0.00024491,2]
[345986102,1734601850395,-600.70330766,0.00024491,4]
[345986103,1734601850404,-500.0,0.00024491,4]
[345986104,1734601850414,-859.67,0.00024491,4]
[345986105,1734601850424,-500.0,0.00024491,4]
[345986106,1734601850434,-636.77,0.00024491,4]
[345986107,1734601850443,-500.0,0.00024491,4]
[345986108,1734601850453,-500.0,0.00024491,4]
[345986109,1734601850463,-500.0,0.00024491,4]
[345986110,1734601850474,-500.0,0.00024491,4]
[345986111,1734601850484,-1000.0,0.00024491,2]
[345986112,1734601850494,-150.0,0.00024494,2]
[345986113,1734601850503,-300.0,0.00024499,2]
[345986114,1734601850512,-300.0,0.00024499,2]
[345986115,1734601850522,-1000.0,0.00024499,2]
[345986116,1734601850532,-1000.0,0.00024499,2]
[345986117,1734601850541,-1000.0,0.00024499,2]
[345986118,1734601850551,-1000.0,0.00024499,2]
[345986119,1734601850560,-1000.0,0.00024499,2]
[345986120,1734601850569,-1000.0,0.00024499,2]
[345986121,1734601850579,-500.0,0.00024499,2]
[345986122,1734601850588,-500.0,0.00024499,2]
[345986123,1734601850597,-313187.96521846,0.000245,2]
[345986124,1734601850606,-4083.44734085,0.000245,2]
[345986125,1734601850615,-2000.0,0.000245,2]
[345986126,1734601850624,-2000.0,0.000245,2]
[345986127,1734601850634,-268857.93448247,0.000245,2]
[345986128,1734601850643,-1406.0,0.000245,2]
[345986129,1734601850653,-2000.0,0.000245,2]
[345986130,1734601850663,-200.0,0.000245,8]
[345986131,1734601850672,-150.0,0.00024502,2]
[345986132,1734601850683,-150.0,0.00024503,2]
[345986133,1734601850692,-586.17,0.00024508,7]
[345986134,1734601850702,-586.17,0.00024508,7]
[345986135,1734601850711,-2110.0,0.0002451,2]
[345986136,1734601850721,-1500.0,0.00024521,2]
[345986137,1734601850730,-171.87138211,0.00024522,2]
[345986138,1734601850739,-150.0,0.00024528,2]
[345986139,1734601850748,-150.0,0.00024539,2]
[345986140,1734601850758,-3804.47014682,0.00024544,2]
[345986141,1734601850768,-502.37656309,0.00024546,2]
[345986142,1734601850778,-150.0,0.00024546,2]
[345986143,1734601850787,-150.0,0.00024548,2]
[345986144,1734601850797,-1500.0,0.00024556,2]
[345986145,1734601850806,-150.0,0.00024558,2]
[345986146,1734601850815,-150.0,0.00024561,2]
[345986147,1734601850824,-1500.0,0.00024563,2]
[345986148,1734601850834,-153.1327827,0.00024564,2]
[345986149,1734601850844,-1500.0,0.00024565,2]
[345986150,1734601850854,-150.0,0.00024566,2]
[345986151,1734601850863,-485.13230271,0.00024567,2]
[345986152,1734601850873,-310.70960865,0.00024567,2]
[345986153,1734601850883,-150.0,0.00024568,2]
[345986154,1734601850892,-208.0,0.0002458,2]
[345986155,1734601850902,-208.0,0.0002458,2]
[345986156,1734601850911,-211.0,0.0002458,2]
[345986157,1734601850920,-209.0,0.0002458,2]
[345986158,1734601850930,-208.0,0.0002458,2]